[Event "*** SCC Grand Prix: Titled Tuesday Blitz"]
[Site "Chess.com"]
[Date "2020.09.29"]
[Round "9"]
[White "gumimis"]
[Black "MisiekZielony"]
[Result "1-0"]
[WhiteElo "2248"]
[BlackElo "2257"]
[TimeControl "180+1"]
[EndTime "11:44:22 PDT"]
[Termination "gumimis won on time"]

1. e4 {[%clk 0:02:59.6]} 1... Nf6 {[%clk 0:02:59.9]} 2. e5 {[%clk 0:02:59]} 2...
Nd5 {[%clk 0:03:00.2]} 3. Nc3 {[%clk 0:02:57.9]} 3... e6 {[%clk 0:03:00.3]} 4.
Nxd5 {[%clk 0:02:56.7]} 4... exd5 {[%clk 0:03:00.3]} 5. d4 {[%clk 0:02:57.6]}
5... d6 {[%clk 0:03:00.5]} 6. f4 {[%clk 0:02:50.8]} 6... Nc6 {[%clk 0:03:00.2]}
7. Nf3 {[%clk 0:02:48.9]} 7... Be7 {[%clk 0:02:38.1]} 8. Be3 {[%clk 0:02:46.1]}
8... f6 {[%clk 0:02:24.1]} 9. exf6 {[%clk 0:02:34]} 9... Bxf6 {[%clk 0:02:23.8]}
10. Bd3 {[%clk 0:02:17.5]} 10... Ne7 {[%clk 0:02:14.3]} 11. O-O {[%clk
0:02:09.8]} 11... Bf5 {[%clk 0:02:12.5]} 12. Ng5 {[%clk 0:01:52.3]} 12... Qd7
{[%clk 0:02:07.8]} 13. Bxf5 {[%clk 0:01:17.5]} 13... Nxf5 {[%clk 0:02:07.1]} 14.
Qf3 {[%clk 0:01:15.7]} 14... c6 {[%clk 0:01:55.4]} 15. Rae1 {[%clk 0:01:11.4]}
15... O-O {[%clk 0:01:50.1]} 16. c3 {[%clk 0:00:59.4]} 16... Bxg5 {[%clk
0:01:40.5]} 17. fxg5 {[%clk 0:00:57.5]} 17... Nxd4 {[%clk 0:00:58.5]} 18. Qh5
{[%clk 0:00:47.4]} 18... Nf5 {[%clk 0:00:54]} 19. g6 {[%clk 0:00:43.1]} 19...
hxg6 {[%clk 0:00:32.4]} 20. Qxg6 {[%clk 0:00:42.9]} 20... Rae8 {[%clk
0:00:27.3]} 21. Bxa7 {[%clk 0:00:24.3]} 21... Rxe1 {[%clk 0:00:22.8]} 22. Rxe1
{[%clk 0:00:23.5]} 22... c5 {[%clk 0:00:22.8]} 23. g4 {[%clk 0:00:06.3]} 23...
Nh4 {[%clk 0:00:22.2]} 24. Qe6+ {[%clk 0:00:04.3]} 24... Qxe6 {[%clk 0:00:21.2]}
25. Rxe6 {[%clk 0:00:04.8]} 25... Rc8 {[%clk 0:00:15.6]} 26. Rxd6 {[%clk
0:00:03.8]} 26... Nf3+ {[%clk 0:00:14]} 27. Kf2 {[%clk 0:00:03.6]} 27... Nd2
{[%clk 0:00:14]} 28. Rxd5 {[%clk 0:00:03.5]} 28... Nc4 {[%clk 0:00:13.8]} 29.
Rxc5 {[%clk 0:00:02.9]} 29... Rxc5 {[%clk 0:00:11.8]} 30. Bxc5 {[%clk
0:00:03.8]} 30... Nxb2 {[%clk 0:00:12.3]} 31. Ke3 {[%clk 0:00:03.9]} 31... Kf7
{[%clk 0:00:10.1]} 32. Kd4 {[%clk 0:00:02.7]} 32... Ke6 {[%clk 0:00:08.1]} 33.
c4 {[%clk 0:00:02.9]} 33... Na4 {[%clk 0:00:06.4]} 34. h4 {[%clk 0:00:01.9]}
34... Nb2 {[%clk 0:00:02.1]} 35. Bb4 {[%clk 0:00:02.2]} 1-0

[Event "*** SCC Grand Prix: Titled Tuesday Blitz"]
[Site "Chess.com"]
[Date "2020.09.29"]
[Round "9"]
[White "kai_nov"]
[Black "guillembaches"]
[Result "1-0"]
[WhiteElo "2288"]
[BlackElo "2412"]
[TimeControl "180+1"]
[EndTime "11:44:24 PDT"]
[Termination "kai_nov won on time"]

1. d4 {[%clk 0:02:29.8]} 1... d5 {[%clk 0:02:59.6]} 2. c4 {[%clk 0:02:29.4]}
2... Nc6 {[%clk 0:02:59.2]} 3. Nc3 {[%clk 0:02:28.7]} 3... Nf6 {[%clk
0:02:57.6]} 4. Nf3 {[%clk 0:02:28]} 4... dxc4 {[%clk 0:02:51.2]} 5. d5 {[%clk
0:02:22.7]} 5... Na5 {[%clk 0:02:47.9]} 6. Qa4+ {[%clk 0:02:21.9]} 6... c6
{[%clk 0:02:47.1]} 7. b4 {[%clk 0:02:19.6]} 7... b5 {[%clk 0:02:46.3]} 8. Qxa5
{[%clk 0:02:16.7]} 8... Qxa5 {[%clk 0:02:45.8]} 9. bxa5 {[%clk 0:02:16.5]} 9...
b4 {[%clk 0:02:45.7]} 10. Nd1 {[%clk 0:02:13]} 10... cxd5 {[%clk 0:02:45.4]} 11.
g3 {[%clk 0:02:10.6]} 11... g6 {[%clk 0:02:38.2]} 12. Be3 {[%clk 0:01:59.1]}
12... Bf5 {[%clk 0:02:31.8]} 13. Bg2 {[%clk 0:01:47]} 13... Bg7 {[%clk
0:02:31.5]} 14. Bd4 {[%clk 0:01:47]} 14... O-O {[%clk 0:02:25.6]} 15. Ne3 {[%clk
0:01:43.9]} 15... Be4 {[%clk 0:02:22.7]} 16. O-O {[%clk 0:01:41.8]} 16... Nd7
{[%clk 0:02:13]} 17. Bxg7 {[%clk 0:01:30.4]} 17... Kxg7 {[%clk 0:02:13.8]} 18.
Nd4 {[%clk 0:01:30.6]} 18... Bxg2 {[%clk 0:02:11.7]} 19. Kxg2 {[%clk 0:01:30.1]}
19... e6 {[%clk 0:02:03.7]} 20. Nc6 {[%clk 0:01:29.9]} 20... b3 {[%clk
0:01:48.4]} 21. axb3 {[%clk 0:01:26.3]} 21... cxb3 {[%clk 0:01:49.3]} 22. Rab1
{[%clk 0:01:25.3]} 22... Rfc8 {[%clk 0:01:48.3]} 23. Nd4 {[%clk 0:01:14.2]}
23... e5 {[%clk 0:01:36.1]} 24. Nxb3 {[%clk 0:01:12.5]} 24... d4 {[%clk
0:01:36.4]} 25. Nd5 {[%clk 0:01:04.5]} 25... Nc5 {[%clk 0:01:31.3]} 26. Ne7
{[%clk 0:00:52.9]} 26... Rc7 {[%clk 0:01:25.8]} 27. Rfc1 {[%clk 0:00:50.9]}
27... Rxe7 {[%clk 0:01:25.5]} 28. Nxc5 {[%clk 0:00:46.8]} 28... Rc8 {[%clk
0:01:10.8]} 29. Nd3 {[%clk 0:00:41.3]} 29... Rd8 {[%clk 0:01:09.4]} 30. Rc5
{[%clk 0:00:38]} 30... e4 {[%clk 0:01:09.2]} 31. Nf4 {[%clk 0:00:37.8]} 31... d3
{[%clk 0:01:09.1]} 32. exd3 {[%clk 0:00:33.9]} 32... exd3 {[%clk 0:01:09.3]} 33.
Rd1 {[%clk 0:00:32.5]} 33... d2 {[%clk 0:01:09.1]} 34. Rd5 {[%clk 0:00:28]}
34... Re1 {[%clk 0:00:51.3]} 35. R1xd2 {[%clk 0:00:27.5]} 35... Rb8 {[%clk
0:00:50.4]} 36. Rd7 {[%clk 0:00:25.4]} 36... Rb5 {[%clk 0:00:49.9]} 37. Rxa7
{[%clk 0:00:25.1]} 37... Ra1 {[%clk 0:00:50]} 38. a6 {[%clk 0:00:23.5]} 38...
Rba5 {[%clk 0:00:50.2]} 39. Rdd7 {[%clk 0:00:23]} 39... Rxa6 {[%clk 0:00:48.4]}
40. Rxf7+ {[%clk 0:00:22.3]} 40... Kg8 {[%clk 0:00:48.7]} 41. Rg7+ {[%clk
0:00:20.7]} 41... Kf8 {[%clk 0:00:47.8]} 42. Raf7+ {[%clk 0:00:20.5]} 42... Ke8
{[%clk 0:00:46.1]} 43. Rxh7 {[%clk 0:00:20.8]} 43... R1a2 {[%clk 0:00:12.4]} 44.
Nd5 {[%clk 0:00:20.2]} 1-0

[Event "*** SCC Grand Prix: Titled Tuesday Blitz"]
[Site "Chess.com"]
[Date "2020.09.29"]
[Round "9"]
[White "szefru"]
[Black "ARTHURMOTIVATOR"]
[Result "0-1"]
[WhiteElo "2170"]
[BlackElo "2369"]
[TimeControl "180+1"]
[EndTime "11:44:24 PDT"]
[Termination "ARTHURMOTIVATOR won by checkmate"]

1. e4 {[%clk 0:02:58.7]} 1... c6 {[%clk 0:02:58]} 2. d4 {[%clk 0:02:58]} 2... d5
{[%clk 0:02:58.3]} 3. Nc3 {[%clk 0:02:57.5]} 3... dxe4 {[%clk 0:02:57.8]} 4.
Nxe4 {[%clk 0:02:58.4]} 4... Nf6 {[%clk 0:02:58.4]} 5. Nxf6+ {[%clk 0:02:57.7]}
5... gxf6 {[%clk 0:02:58.5]} 6. g3 {[%clk 0:02:53.8]} 6... h5 {[%clk 0:02:56.7]}
7. h4 {[%clk 0:02:53.5]} 7... Bg4 {[%clk 0:02:55.1]} 8. Be2 {[%clk 0:02:52.5]}
8... Qd5 {[%clk 0:02:54.1]} 9. Bf3 {[%clk 0:02:49.2]} 9... Bxf3 {[%clk
0:02:37.8]} 10. Nxf3 {[%clk 0:02:49.7]} 10... Nd7 {[%clk 0:02:36.7]} 11. O-O
{[%clk 0:02:33.3]} 11... O-O-O {[%clk 0:02:34.1]} 12. Be3 {[%clk 0:02:30.3]}
12... Kb8 {[%clk 0:02:29.5]} 13. b3 {[%clk 0:02:30]} 13... e6 {[%clk 0:02:21.1]}
14. c4 {[%clk 0:02:29.9]} 14... Qf5 {[%clk 0:02:21.2]} 15. Kg2 {[%clk
0:02:24.8]} 15... Bd6 {[%clk 0:02:19.6]} 16. c5 {[%clk 0:02:15.8]} 16... Bc7
{[%clk 0:02:18.6]} 17. Qb1 {[%clk 0:02:13]} 17... Qg4 {[%clk 0:02:16.2]} 18. Nh2
{[%clk 0:02:01.7]} 18... Qg7 {[%clk 0:02:12.1]} 19. Qe4 {[%clk 0:01:56.9]} 19...
f5 {[%clk 0:02:08.3]} 20. Qf3 {[%clk 0:01:55.3]} 20... Rhg8 {[%clk 0:01:37]} 21.
b4 {[%clk 0:01:54.2]} 21... Nf6 {[%clk 0:01:20.1]} 22. b5 {[%clk 0:01:50.8]}
22... cxb5 {[%clk 0:01:06.9]} 23. Rab1 {[%clk 0:01:50.6]} 23... Nd5 {[%clk
0:01:05.2]} 24. Rxb5 {[%clk 0:01:45.7]} 24... f4 {[%clk 0:01:03.6]} 25. Bxf4
{[%clk 0:01:10.1]} 25... Nxf4+ {[%clk 0:01:01.8]} 26. Kh1 {[%clk 0:01:08.1]}
26... Nd5 {[%clk 0:00:55.2]} 27. Rfb1 {[%clk 0:01:04.3]} 27... b6 {[%clk
0:00:52.7]} 28. cxb6 {[%clk 0:01:03.5]} 28... Bxb6 {[%clk 0:00:51.8]} 29. a4
{[%clk 0:00:59.4]} 29... Qf6 {[%clk 0:00:22.6]} 30. Qg2 {[%clk 0:00:51.5]} 30...
Ka8 {[%clk 0:00:15.4]} 31. a5 {[%clk 0:00:51.1]} 31... Bxd4 {[%clk 0:00:15]} 32.
Nf3 {[%clk 0:00:35.5]} 32... Rg4 {[%clk 0:00:14.8]} 33. Nxd4 {[%clk 0:00:32.4]}
33... Qxd4 {[%clk 0:00:12.1]} 34. a6 {[%clk 0:00:29.6]} 34... Re4 {[%clk
0:00:09.8]} 35. Qf1 {[%clk 0:00:28.1]} 35... Re5 {[%clk 0:00:07.3]} 36. Rb7
{[%clk 0:00:28]} 36... Qe4+ {[%clk 0:00:06.4]} 37. Kh2 {[%clk 0:00:26.6]} 37...
Qe2 {[%clk 0:00:04.3]} 38. Qg2 {[%clk 0:00:24]} 38... Qe4 {[%clk 0:00:04.5]} 39.
Qf1 {[%clk 0:00:23.3]} 39... Qe2 {[%clk 0:00:03.9]} 40. Qg1 {[%clk 0:00:21]}
40... Rf5 {[%clk 0:00:04]} 41. Kh3 {[%clk 0:00:16.6]} 41... Rxf2 {[%clk
0:00:03.7]} 42. R1b2 {[%clk 0:00:13.2]} 42... Qg4# {[%clk 0:00:03.8]} 0-1

[Event "*** SCC Grand Prix: Titled Tuesday Blitz"]
[Site "Chess.com"]
[Date "2020.09.29"]
[Round "9"]
[White "Nikolaj_6"]
[Black "almaguerjm"]
[Result "1-0"]
[WhiteElo "2556"]
[BlackElo "2310"]
[TimeControl "180+1"]
[EndTime "11:44:27 PDT"]
[Termination "Nikolaj_6 won by resignation"]

1. e4 {[%clk 0:03:00.9]} 1... Nf6 {[%clk 0:02:53.7]} 2. e5 {[%clk 0:03:00.5]}
2... Nd5 {[%clk 0:02:54.1]} 3. d4 {[%clk 0:03:00.6]} 3... d6 {[%clk 0:02:54.4]}
4. c4 {[%clk 0:03:00.4]} 4... Nb6 {[%clk 0:02:54.6]} 5. exd6 {[%clk 0:03:00.9]}
5... cxd6 {[%clk 0:02:55.5]} 6. Nc3 {[%clk 0:03:00.8]} 6... g6 {[%clk 0:02:56]}
7. Be3 {[%clk 0:03:01.2]} 7... Bg7 {[%clk 0:02:56.2]} 8. Rc1 {[%clk 0:03:01.7]}
8... O-O {[%clk 0:02:55.2]} 9. b3 {[%clk 0:03:02.1]} 9... a5 {[%clk 0:02:49.2]}
10. Be2 {[%clk 0:02:57.8]} 10... a4 {[%clk 0:02:49]} 11. Nf3 {[%clk 0:02:56.6]}
11... axb3 {[%clk 0:02:48.1]} 12. axb3 {[%clk 0:02:56.7]} 12... Nc6 {[%clk
0:02:41.9]} 13. O-O {[%clk 0:02:52.5]} 13... Bd7 {[%clk 0:02:36.4]} 14. d5
{[%clk 0:02:50.4]} 14... Ne5 {[%clk 0:02:34.5]} 15. Nd4 {[%clk 0:02:49.8]} 15...
h5 {[%clk 0:02:30.3]} 16. h3 {[%clk 0:02:49]} 16... f5 {[%clk 0:02:20.7]} 17. f4
{[%clk 0:02:42]} 17... Nf7 {[%clk 0:02:19.4]} 18. Ndb5 {[%clk 0:02:38.6]} 18...
Bxb5 {[%clk 0:02:13.5]} 19. Nxb5 {[%clk 0:02:37.8]} 19... Nd7 {[%clk 0:02:13.7]}
20. Qd2 {[%clk 0:02:29.4]} 20... Qa5 {[%clk 0:02:05]} 21. Qc2 {[%clk 0:02:08.5]}
21... Nc5 {[%clk 0:01:56.9]} 22. Bd2 {[%clk 0:01:51.6]} 22... Qa2 {[%clk
0:01:54.6]} 23. b4 {[%clk 0:01:50.1]} 23... Ne4 {[%clk 0:01:45.1]} 24. Be1
{[%clk 0:01:42.6]} 24... Qxc2 {[%clk 0:01:40]} 25. Rxc2 {[%clk 0:01:42.5]} 25...
Ra1 {[%clk 0:01:27.5]} 26. g4 {[%clk 0:01:39.5]} 26... hxg4 {[%clk 0:01:25.7]}
27. hxg4 {[%clk 0:01:40.2]} 27... Nh6 {[%clk 0:01:25.8]} 28. g5 {[%clk
0:01:33.4]} 28... Nf7 {[%clk 0:01:07.6]} 29. Nc7 {[%clk 0:01:29.8]} 29... Bd4+
{[%clk 0:00:53.1]} 30. Kg2 {[%clk 0:01:27.9]} 30... Rc8 {[%clk 0:00:47.9]} 31.
Ne6 {[%clk 0:01:26.6]} 31... Bh8 {[%clk 0:00:46.3]} 32. Bd3 {[%clk 0:01:21.8]}
32... Nd8 {[%clk 0:00:43.8]} 33. Nxd8 {[%clk 0:01:17.9]} 33... Rxd8 {[%clk
0:00:42.7]} 34. Rh1 {[%clk 0:01:09]} 34... Bg7 {[%clk 0:00:37.7]} 35. Rf1 {[%clk
0:00:54.6]} 35... Rda8 {[%clk 0:00:37.1]} 36. Bxe4 {[%clk 0:00:52.4]} 36... fxe4
{[%clk 0:00:36.8]} 37. Bc3 {[%clk 0:00:51]} 37... R8a2 {[%clk 0:00:27.5]} 38.
Rff2 {[%clk 0:00:41.5]} 38... Rxc2 {[%clk 0:00:24.2]} 39. Rxc2 {[%clk
0:00:41.3]} 39... Bxc3 {[%clk 0:00:23]} 40. Rxc3 {[%clk 0:00:41.6]} 40... Rb1
{[%clk 0:00:20.5]} 41. b5 {[%clk 0:00:35.9]} 41... Rb2+ {[%clk 0:00:20.2]} 42.
Kf1 {[%clk 0:00:35.5]} 42... Kf7 {[%clk 0:00:14.8]} 43. Re3 {[%clk 0:00:35.1]}
43... e5 {[%clk 0:00:15.2]} 44. dxe6+ {[%clk 0:00:34.6]} 44... Kxe6 {[%clk
0:00:15.3]} 45. Rxe4+ {[%clk 0:00:35.1]} 45... Kf5 {[%clk 0:00:16.2]} 46. Rd4
{[%clk 0:00:35.3]} 46... Rc2 {[%clk 0:00:14.5]} 47. Ke1 {[%clk 0:00:26.4]} 47...
Kg4 {[%clk 0:00:14.8]} 48. Kd1 {[%clk 0:00:24.5]} 48... Rc3 {[%clk 0:00:15]} 49.
Kd2 {[%clk 0:00:23.7]} 49... Rf3 {[%clk 0:00:14.1]} 50. Rxd6 {[%clk 0:00:22.4]}
50... Rxf4 {[%clk 0:00:14.5]} 51. Kd3 {[%clk 0:00:22.4]} 51... Kxg5 {[%clk
0:00:14.5]} 52. c5 {[%clk 0:00:21.8]} 52... Rb4 {[%clk 0:00:13.4]} 53. c6 {[%clk
0:00:16.8]} 53... Rxb5 {[%clk 0:00:11.7]} 54. c7 {[%clk 0:00:14]} 54... Rd5+
{[%clk 0:00:11.2]} 55. Rxd5+ {[%clk 0:00:13.5]} 1-0

[Event "*** SCC Grand Prix: Titled Tuesday Blitz"]
[Site "Chess.com"]
[Date "2020.09.29"]
[Round "9"]
[White "Goryachkina"]
[Black "swimmerchess"]
[Result "1/2-1/2"]
[WhiteElo "2662"]
[BlackElo "2833"]
[TimeControl "180+1"]
[EndTime "11:44:28 PDT"]
[Termination "Game drawn by repetition"]

1. e4 {[%clk 0:03:00.9]} 1... c5 {[%clk 0:02:59.6]} 2. Nf3 {[%clk 0:03:00.5]}
2... Nc6 {[%clk 0:03:00.2]} 3. Bb5 {[%clk 0:02:59.5]} 3... Na5 {[%clk 0:03:00]}
4. Be2 {[%clk 0:02:48.9]} 4... a6 {[%clk 0:02:57.6]} 5. O-O {[%clk 0:02:48.7]}
5... b5 {[%clk 0:02:58.1]} 6. c3 {[%clk 0:02:42.5]} 6... Bb7 {[%clk 0:02:58]} 7.
b4 {[%clk 0:02:42.4]} 7... cxb4 {[%clk 0:02:52.4]} 8. cxb4 {[%clk 0:02:42.3]}
8... Nc6 {[%clk 0:02:49.1]} 9. a3 {[%clk 0:02:42.1]} 9... Nf6 {[%clk 0:02:47.8]}
10. d3 {[%clk 0:02:35]} 10... g6 {[%clk 0:02:38.9]} 11. Bb2 {[%clk 0:02:33.8]}
11... Bg7 {[%clk 0:02:39]} 12. Nbd2 {[%clk 0:02:33.2]} 12... O-O {[%clk
0:02:38.7]} 13. Nb3 {[%clk 0:02:26.6]} 13... d6 {[%clk 0:02:38.1]} 14. Rc1
{[%clk 0:02:24.3]} 14... Rc8 {[%clk 0:02:37.7]} 15. Qd2 {[%clk 0:02:22.4]} 15...
e5 {[%clk 0:02:25.4]} 16. Rc2 {[%clk 0:02:19.9]} 16... Nh5 {[%clk 0:02:01.7]}
17. d4 {[%clk 0:01:59.9]} 17... Nf4 {[%clk 0:01:59]} 18. dxe5 {[%clk 0:01:37.6]}
18... dxe5 {[%clk 0:01:49.5]} 19. Nc5 {[%clk 0:01:29.5]} 19... Qe7 {[%clk
0:01:40.6]} 20. g3 {[%clk 0:01:13.8]} 20... Nxe2+ {[%clk 0:01:27.6]} 21. Qxe2
{[%clk 0:01:13.5]} 21... Nd4 {[%clk 0:01:28.5]} 22. Nxd4 {[%clk 0:00:59.3]}
22... exd4 {[%clk 0:01:29.4]} 23. Rd1 {[%clk 0:00:44.5]} 23... Rfd8 {[%clk
0:01:23.8]} 24. Nxb7 {[%clk 0:00:42]} 24... Rxc2 {[%clk 0:01:17]} 25. Qxc2
{[%clk 0:00:39.6]} 25... Qxb7 {[%clk 0:01:17.1]} 26. Qd3 {[%clk 0:00:34.6]}
26... Qc6 {[%clk 0:01:11.1]} 27. f4 {[%clk 0:00:30.9]} 27... Qc4 {[%clk
0:01:00.5]} 28. e5 {[%clk 0:00:28.1]} 28... f6 {[%clk 0:00:56.1]} 29. Qxc4+
{[%clk 0:00:26]} 29... bxc4 {[%clk 0:00:54.9]} 30. Rxd4 {[%clk 0:00:25.4]} 30...
Rc8 {[%clk 0:00:36.8]} 31. Re4 {[%clk 0:00:17.8]} 31... c3 {[%clk 0:00:33.9]}
32. Bc1 {[%clk 0:00:18.1]} 32... fxe5 {[%clk 0:00:23.1]} 33. fxe5 {[%clk
0:00:18.2]} 33... Rd8 {[%clk 0:00:22.8]} 34. Kf2 {[%clk 0:00:18.1]} 34... Rd1
{[%clk 0:00:22.1]} 35. Re1 {[%clk 0:00:17.5]} 35... Rxe1 {[%clk 0:00:19.2]} 36.
Kxe1 {[%clk 0:00:17.5]} 36... Bxe5 {[%clk 0:00:20.1]} 37. Ke2 {[%clk 0:00:18]}
37... Kf7 {[%clk 0:00:19.9]} 38. Kd3 {[%clk 0:00:17.4]} 38... Ke6 {[%clk
0:00:20.2]} 39. Kc4 {[%clk 0:00:17.2]} 39... Kf5 {[%clk 0:00:19.5]} 40. a4
{[%clk 0:00:15.5]} 40... Kg4 {[%clk 0:00:18.9]} 41. b5 {[%clk 0:00:14.6]} 41...
axb5+ {[%clk 0:00:19.8]} 42. axb5 {[%clk 0:00:13.7]} 42... Kh3 {[%clk
0:00:20.1]} 43. b6 {[%clk 0:00:13.5]} 43... Kxh2 {[%clk 0:00:20.3]} 44. g4
{[%clk 0:00:09.5]} 44... Kg3 {[%clk 0:00:20.5]} 45. g5 {[%clk 0:00:10]} 45...
Kf3 {[%clk 0:00:20.6]} 46. Kd5 {[%clk 0:00:09.7]} 46... Bh2 {[%clk 0:00:20.3]}
47. Kc4 {[%clk 0:00:07.4]} 47... Be5 {[%clk 0:00:19.5]} 48. Kd5 {[%clk
0:00:07.7]} 48... Bg3 {[%clk 0:00:12]} 49. Kc4 {[%clk 0:00:07.6]} 49... Be5
{[%clk 0:00:12.4]} 1/2-1/2

[Event "*** SCC Grand Prix: Titled Tuesday Blitz"]
[Site "Chess.com"]
[Date "2020.09.29"]
[Round "9"]
[White "Shuvalov"]
[Black "Martins-BR"]
[Result "1-0"]
[WhiteElo "2421"]
[BlackElo "2294"]
[TimeControl "180+1"]
[EndTime "11:44:28 PDT"]
[Termination "Shuvalov won on time"]

1. b4 {[%clk 0:02:59.1]} 1... c6 {[%clk 0:02:58.2]} 2. Bb2 {[%clk 0:02:58.2]}
2... a5 {[%clk 0:02:58.2]} 3. a3 {[%clk 0:02:57.8]} 3... axb4 {[%clk 0:02:58.2]}
4. axb4 {[%clk 0:02:57.5]} 4... Rxa1 {[%clk 0:02:58.7]} 5. Bxa1 {[%clk
0:02:58.3]} 5... Qb6 {[%clk 0:02:58.2]} 6. b5 {[%clk 0:02:55.9]} 6... d5 {[%clk
0:02:51.9]} 7. e3 {[%clk 0:02:54.8]} 7... Nd7 {[%clk 0:02:45.3]} 8. Nf3 {[%clk
0:02:52.1]} 8... f6 {[%clk 0:02:44.2]} 9. d4 {[%clk 0:02:49.3]} 9... e6 {[%clk
0:02:38.8]} 10. Nbd2 {[%clk 0:02:44.6]} 10... cxb5 {[%clk 0:02:13.3]} 11. Bd3
{[%clk 0:02:36.5]} 11... Bd6 {[%clk 0:02:09.9]} 12. e4 {[%clk 0:02:33]} 12...
Ne7 {[%clk 0:02:06.1]} 13. e5 {[%clk 0:02:26.7]} 13... fxe5 {[%clk 0:02:01.6]}
14. dxe5 {[%clk 0:02:26.4]} 14... Bc5 {[%clk 0:01:52.7]} 15. O-O {[%clk
0:02:23.3]} 15... O-O {[%clk 0:00:54.9]} 16. Nb3 {[%clk 0:02:01.3]} 16... Nf5
{[%clk 0:00:50.6]} 17. g4 {[%clk 0:01:48.6]} 17... Ne7 {[%clk 0:00:39.4]} 18.
Nxc5 {[%clk 0:01:30.7]} 18... Nxc5 {[%clk 0:00:38.7]} 19. Bd4 {[%clk 0:01:31.3]}
19... Qc6 {[%clk 0:00:37.1]} 20. Ng5 {[%clk 0:01:18.7]} 20... Nxd3 {[%clk
0:00:26.1]} 21. Qxd3 {[%clk 0:01:18.3]} 21... Ng6 {[%clk 0:00:26.6]} 22. f4
{[%clk 0:01:13.7]} 22... Qc4 {[%clk 0:00:26.3]} 23. Qe3 {[%clk 0:01:06.9]} 23...
h6 {[%clk 0:00:22]} 24. Nh3 {[%clk 0:01:00.8]} 24... Qxc2 {[%clk 0:00:19.2]} 25.
Rc1 {[%clk 0:00:46.5]} 25... Qe4 {[%clk 0:00:18.1]} 26. Qxe4 {[%clk 0:00:42.7]}
26... dxe4 {[%clk 0:00:19]} 27. Rc7 {[%clk 0:00:38.1]} 27... b6 {[%clk
0:00:16.6]} 28. Kf2 {[%clk 0:00:32.1]} 28... b4 {[%clk 0:00:16]} 29. Ke3 {[%clk
0:00:32]} 29... b3 {[%clk 0:00:15.6]} 30. Kxe4 {[%clk 0:00:27.9]} 30... Ba6
{[%clk 0:00:15]} 31. f5 {[%clk 0:00:25.3]} 31... exf5+ {[%clk 0:00:14.4]} 32.
gxf5 {[%clk 0:00:25.6]} 32... Nh4 {[%clk 0:00:14.8]} 33. f6 {[%clk 0:00:24]}
33... gxf6 {[%clk 0:00:13.1]} 34. exf6 {[%clk 0:00:24.9]} 34... Bc4 {[%clk
0:00:10.7]} 35. Rxc4 {[%clk 0:00:23.3]} 35... Re8+ {[%clk 0:00:09]} 36. Kf4
{[%clk 0:00:20.2]} 36... Kf7 {[%clk 0:00:09.3]} 37. Rc7+ {[%clk 0:00:19.5]}
37... Ke6 {[%clk 0:00:09.3]} 38. Rb7 {[%clk 0:00:18.5]} 38... Ng6+ {[%clk
0:00:07.8]} 39. Ke4 {[%clk 0:00:15.7]} 39... Kd6+ {[%clk 0:00:06.6]} 40. Kf5
{[%clk 0:00:15.8]} 40... Kd5 {[%clk 0:00:06]} 41. Bb2 {[%clk 0:00:13]} 41... Ne5
{[%clk 0:00:04.6]} 42. Rxb6 {[%clk 0:00:12.1]} 42... Nc4 {[%clk 0:00:03.7]} 43.
Rxb3 {[%clk 0:00:11.6]} 43... Ne3+ {[%clk 0:00:03.7]} 44. Kg6 {[%clk 0:00:11]}
44... Rg8+ {[%clk 0:00:02.6]} 45. Kf7 {[%clk 0:00:10.9]} 45... Rg2 {[%clk
0:00:01.7]} 46. Nf4+ {[%clk 0:00:11.1]} 46... Ke4 {[%clk 0:00:01.2]} 47. Nxg2
{[%clk 0:00:12]} 1-0

[Event "*** SCC Grand Prix: Titled Tuesday Blitz"]
[Site "Chess.com"]
[Date "2020.09.29"]
[Round "9"]
[White "DariaVoit"]
[Black "Berardino"]
[Result "0-1"]
[WhiteElo "2489"]
[BlackElo "2713"]
[TimeControl "180+1"]
[EndTime "11:44:32 PDT"]
[Termination "Berardino won on time"]

1. f4 {[%clk 0:03:00.9]} 1... d5 {[%clk 0:02:57.6]} 2. Nf3 {[%clk 0:03:01]} 2...
Bg4 {[%clk 0:02:57.6]} 3. e3 {[%clk 0:02:59.4]} 3... Nd7 {[%clk 0:02:57.8]} 4.
d4 {[%clk 0:02:57.5]} 4... Ngf6 {[%clk 0:02:57.1]} 5. c4 {[%clk 0:02:57.9]} 5...
e6 {[%clk 0:02:56.6]} 6. Nc3 {[%clk 0:02:57.7]} 6... c6 {[%clk 0:02:55.9]} 7.
Bd2 {[%clk 0:02:54.1]} 7... Ne4 {[%clk 0:02:54.8]} 8. Be2 {[%clk 0:02:46.1]}
8... Ndf6 {[%clk 0:02:45.7]} 9. c5 {[%clk 0:02:34.1]} 9... Be7 {[%clk
0:02:35.2]} 10. O-O {[%clk 0:02:32.2]} 10... b6 {[%clk 0:02:33.8]} 11. b4 {[%clk
0:02:31.4]} 11... a5 {[%clk 0:02:33.1]} 12. a3 {[%clk 0:02:31.3]} 12... axb4
{[%clk 0:02:31.9]} 13. Nxe4 {[%clk 0:02:26.2]} 13... Nxe4 {[%clk 0:02:19.1]} 14.
Ne5 {[%clk 0:02:19.1]} 14... Bxe2 {[%clk 0:02:18.1]} 15. Qxe2 {[%clk 0:02:20]}
15... bxc5 {[%clk 0:02:03.5]} 16. Nxc6 {[%clk 0:02:11.4]} 16... Qd7 {[%clk
0:02:02.8]} 17. Nxe7 {[%clk 0:01:59.4]} 17... Qxe7 {[%clk 0:02:01]} 18. axb4
{[%clk 0:01:55.5]} 18... O-O {[%clk 0:01:52.1]} 19. bxc5 {[%clk 0:01:23.4]}
19... Qd7 {[%clk 0:01:41.3]} 20. Ba5 {[%clk 0:01:11.8]} 20... h6 {[%clk
0:01:31.7]} 21. Bb6 {[%clk 0:01:09.8]} 21... Qc6 {[%clk 0:01:30.8]} 22. h3
{[%clk 0:01:06.7]} 22... Ng3 {[%clk 0:01:29.7]} 23. Qb2 {[%clk 0:00:59.2]} 23...
Nxf1 {[%clk 0:01:29.1]} 24. Rxf1 {[%clk 0:01:00]} 24... Ra4 {[%clk 0:01:14.9]}
25. Kh2 {[%clk 0:00:29.4]} 25... Rfa8 {[%clk 0:01:13.3]} 26. Qf2 {[%clk
0:00:28.8]} 26... Ra2 {[%clk 0:01:11.6]} 27. Qg3 {[%clk 0:00:29.3]} 27... Re2
{[%clk 0:01:04]} 28. f5 {[%clk 0:00:28.9]} 28... exf5 {[%clk 0:00:56.3]} 29. Rf2
{[%clk 0:00:16.3]} 29... Rxf2 {[%clk 0:00:52.2]} 30. Qxf2 {[%clk 0:00:17.2]}
30... Qe6 {[%clk 0:00:52.5]} 31. Bc7 {[%clk 0:00:16.1]} 31... Qe4 {[%clk
0:00:48.3]} 32. Bf4 {[%clk 0:00:11.1]} 32... g5 {[%clk 0:00:43.8]} 33. Be5
{[%clk 0:00:10.8]} 33... Ra3 {[%clk 0:00:41.3]} 34. c6 {[%clk 0:00:07.3]} 34...
Rc3 {[%clk 0:00:38.6]} 35. c7 {[%clk 0:00:07.1]} 35... Rc2 {[%clk 0:00:34.3]}
36. Qf1 {[%clk 0:00:04.3]} 36... Kh7 {[%clk 0:00:27.3]} 37. Kg1 {[%clk
0:00:01.8]} 37... Kg6 {[%clk 0:00:27.3]} 38. Kh2 {[%clk 0:00:01.8]} 38... h5
{[%clk 0:00:26.4]} 39. Qa6+ {[%clk 0:00:01.7]} 39... Kh7 {[%clk 0:00:24.5]} 40.
Qf1 {[%clk 0:00:02.2]} 40... h4 {[%clk 0:00:22]} 41. Kg1 {[%clk 0:00:02.4]}
41... Qxe3+ {[%clk 0:00:21.7]} 42. Kh2 {[%clk 0:00:02.5]} 42... Qe4 {[%clk
0:00:22.3]} 43. Kh1 {[%clk 0:00:02.7]} 43... g4 {[%clk 0:00:22.4]} 44. Kh2
{[%clk 0:00:02.6]} 44... g3+ {[%clk 0:00:22]} 45. Kh1 {[%clk 0:00:02.6]} 45...
Kg6 {[%clk 0:00:18.7]} 46. Qg1 {[%clk 0:00:01.3]} 46... f4 {[%clk 0:00:16.2]}
47. Qf1 {[%clk 0:00:01.2]} 47... Qe3 {[%clk 0:00:11.9]} 48. Qg1 {[%clk
0:00:01.2]} 48... Rc1 {[%clk 0:00:11.8]} 0-1